[Event "*** Titled Tuesday 3|2 Blitz"]
[Site "Chess.com"]
[Date "2017.03.07"]
[Round "3"]
[White "arna"]
[Black "GMMelik"]
[Result "1-0"]
[WhiteElo "2267"]
[BlackElo "2402"]
[TimeControl "180+2"]
[EndTime "13:40:13 PST"]
[Termination "arna won by resignation"]

1. e4 {[%clk 0:03:02]} 1... e5 {[%clk 0:02:54.8]} 2. Nf3 {[%clk 0:03:00.9]} 2...
Nc6 {[%clk 0:02:55.9]} 3. d4 {[%clk 0:02:57.2]} 3... exd4 {[%clk 0:02:56.7]} 4.
Nxd4 {[%clk 0:02:58.4]} 4... Nf6 {[%clk 0:02:57.8]} 5. Nc3 {[%clk 0:02:57.5]}
5... Bb4 {[%clk 0:02:58.5]} 6. Nxc6 {[%clk 0:02:55.6]} 6... bxc6 {[%clk
0:02:58.4]} 7. Bd3 {[%clk 0:02:57.2]} 7... d5 {[%clk 0:02:59.1]} 8. exd5 {[%clk
0:02:58.8]} 8... Qe7+ {[%clk 0:02:59.6]} 9. Qe2 {[%clk 0:02:59]} 9... Qxe2+
{[%clk 0:03:00.5]} 10. Kxe2 {[%clk 0:02:53.7]} 10... Nxd5 {[%clk 0:03:02.4]} 11.
Ne4 {[%clk 0:02:15.5]} 11... O-O {[%clk 0:02:59.9]} 12. c3 {[%clk 0:02:14.3]}
12... Be7 {[%clk 0:02:53.8]} 13. Ng3 {[%clk 0:01:58.1]} 13... f5 {[%clk
0:02:47.6]} 14. Bd2 {[%clk 0:01:46.5]} 14... Rb8 {[%clk 0:02:45.3]} 15. b3
{[%clk 0:01:46.7]} 15... g6 {[%clk 0:02:29.1]} 16. Kd1 {[%clk 0:01:26.2]} 16...
Bd6 {[%clk 0:02:25.3]} 17. Kc2 {[%clk 0:01:24.8]} 17... Nf4 {[%clk 0:02:12.5]}
18. Bc4+ {[%clk 0:01:12.6]} 18... Kg7 {[%clk 0:02:09.8]} 19. Be3 {[%clk
0:00:53.2]} 19... c5 {[%clk 0:02:08]} 20. Rhg1 {[%clk 0:00:13.5]} 20... Bb7
{[%clk 0:02:07.2]} 21. f3 {[%clk 0:00:12]} 21... Rfe8 {[%clk 0:02:01.2]} 22.
Rae1 {[%clk 0:00:11.8]} 22... a5 {[%clk 0:01:50.5]} 23. a4 {[%clk 0:00:10.6]}
23... Kf6 {[%clk 0:01:17.5]} 24. Bb5 {[%clk 0:00:11.5]} 24... Re7 {[%clk
0:01:13.9]} 25. Bd2 {[%clk 0:00:09]} 25... Rxe1 {[%clk 0:01:12.9]} 26. Bxe1
{[%clk 0:00:10.2]} 26... Bd5 {[%clk 0:01:11.5]} 27. c4 {[%clk 0:00:10]} 27...
Ba8 {[%clk 0:01:08.5]} 28. Bxa5 {[%clk 0:00:11]} 28... c6 {[%clk 0:01:07.4]} 29.
Bc3+ {[%clk 0:00:11.3]} 29... Be5 {[%clk 0:01:06.8]} 30. Ba6 {[%clk 0:00:09.9]}
30... Bxc3 {[%clk 0:01:04.5]} 31. Kxc3 {[%clk 0:00:10.5]} 31... Rd8 {[%clk
0:01:06.4]} 32. Re1 {[%clk 0:00:07.2]} 32... Nxg2 {[%clk 0:01:05.5]} 33. Re2
{[%clk 0:00:06.1]} 33... Nf4 {[%clk 0:01:06.4]} 34. Rd2 {[%clk 0:00:07.7]} 34...
Rxd2 {[%clk 0:01:02.5]} 35. Kxd2 {[%clk 0:00:09.6]} 35... Ke5 {[%clk 0:01:04.4]}
36. Bc8 {[%clk 0:00:07.3]} 36... Kd6 {[%clk 0:00:57.8]} 37. Ke3 {[%clk
0:00:04.8]} 37... Ng2+ {[%clk 0:00:57.1]} 38. Kf2 {[%clk 0:00:05.7]} 38... Nf4
{[%clk 0:00:59]} 39. Ke3 {[%clk 0:00:07.2]} 39... Ng2+ {[%clk 0:00:52.3]} 40.
Kf2 {[%clk 0:00:08.3]} 40... Nh4 {[%clk 0:00:54.2]} 41. Ne2 {[%clk 0:00:07.4]}
41... Kc7 {[%clk 0:00:55.1]} 42. Be6 {[%clk 0:00:08]} 42... Bb7 {[%clk
0:00:56.1]} 43. f4 {[%clk 0:00:04.7]} 43... Kd6 {[%clk 0:00:57.4]} 44. Bg8
{[%clk 0:00:05.1]} 44... Ke7 {[%clk 0:00:52.7]} 45. Kg3 {[%clk 0:00:05.3]} 45...
g5 {[%clk 0:00:52.2]} 46. fxg5 {[%clk 0:00:05.4]} 46... Ng6 {[%clk 0:00:53.4]}
47. Bxh7 {[%clk 0:00:06.9]} 47... Ne5 {[%clk 0:00:54.6]} 48. Bxf5 {[%clk
0:00:07.1]} 48... Nf7 {[%clk 0:00:49.7]} 49. h4 {[%clk 0:00:07.4]} 49... Nd6
{[%clk 0:00:48.5]} 50. Bd3 {[%clk 0:00:06.8]} 50... Bc8 {[%clk 0:00:49.1]} 51.
Nf4 {[%clk 0:00:07.8]} 51... Bf5 {[%clk 0:00:48.6]} 52. h5 {[%clk 0:00:05.7]}
52... Bxd3 {[%clk 0:00:41]} 53. Nxd3 {[%clk 0:00:07.6]} 53... Ke6 {[%clk
0:00:42.5]} 54. Kf4 {[%clk 0:00:08.4]} 54... Ke7 {[%clk 0:00:40.8]} 55. a5
{[%clk 0:00:08.7]} 1-0

[Event "*** Titled Tuesday 3|2 Blitz"]
[Site "Chess.com"]
[Date "2017.03.07"]
[Round "3"]
[White "igorkovalenko"]
[Black "rasmussvane"]
[Result "1-0"]
[WhiteElo "2687"]
[BlackElo "2482"]
[TimeControl "180+2"]
[EndTime "13:40:26 PST"]
[Termination "igorkovalenko won by resignation"]

1. e4 {[%clk 0:03:02]} 1... c6 {[%clk 0:03:00.1]} 2. d4 {[%clk 0:03:02.8]} 2...
d5 {[%clk 0:03:01.2]} 3. exd5 {[%clk 0:03:04.4]} 3... cxd5 {[%clk 0:03:02.1]} 4.
Bd3 {[%clk 0:03:06.1]} 4... Nc6 {[%clk 0:03:02.7]} 5. c3 {[%clk 0:03:07.8]} 5...
Qc7 {[%clk 0:03:03.4]} 6. Ne2 {[%clk 0:03:08.1]} 6... Bg4 {[%clk 0:03:03.6]} 7.
f3 {[%clk 0:03:09.2]} 7... Bh5 {[%clk 0:02:58.9]} 8. Bf4 {[%clk 0:03:10.7]} 8...
Qc8 {[%clk 0:02:48.3]} 9. Na3 {[%clk 0:03:09.5]} 9... a6 {[%clk 0:02:41]} 10.
Nc2 {[%clk 0:03:06.3]} 10... e6 {[%clk 0:02:40.8]} 11. O-O {[%clk 0:03:04.8]}
11... Nf6 {[%clk 0:02:39.4]} 12. Ne3 {[%clk 0:03:03.5]} 12... Be7 {[%clk
0:02:36.7]} 13. a4 {[%clk 0:02:51.1]} 13... Bg6 {[%clk 0:02:37.3]} 14. Bxg6
{[%clk 0:02:48.7]} 14... hxg6 {[%clk 0:02:38.4]} 15. h3 {[%clk 0:02:43.6]} 15...
Na5 {[%clk 0:02:25]} 16. Qd3 {[%clk 0:02:40.5]} 16... O-O {[%clk 0:02:10.3]} 17.
Be5 {[%clk 0:02:41]} 17... Nd7 {[%clk 0:02:05.4]} 18. Kh1 {[%clk 0:02:34.2]}
18... Qc6 {[%clk 0:01:51.1]} 19. b4 {[%clk 0:02:32.4]} 19... Nc4 {[%clk
0:01:46.5]} 20. Nxc4 {[%clk 0:02:33.7]} 20... dxc4 {[%clk 0:01:45.3]} 21. Qe3
{[%clk 0:02:26.7]} 21... b5 {[%clk 0:01:40.4]} 22. a5 {[%clk 0:02:27.4]} 22...
Rfe8 {[%clk 0:01:38.8]} 23. g3 {[%clk 0:02:25.5]} 23... Nf6 {[%clk 0:01:37.5]}
24. Bxf6 {[%clk 0:02:26.5]} 24... Bxf6 {[%clk 0:01:38.7]} 25. Rad1 {[%clk
0:02:27.2]} 25... Rad8 {[%clk 0:01:35.6]} 26. Qe4 {[%clk 0:02:28.6]} 26... Qc7
{[%clk 0:01:25.5]} 27. f4 {[%clk 0:02:29.1]} 27... Rd5 {[%clk 0:01:22.6]} 28.
Kg2 {[%clk 0:02:29.7]} 28... Qd7 {[%clk 0:01:19.1]} 29. Ng1 {[%clk 0:02:19.6]}
29... e5 {[%clk 0:01:16]} 30. fxe5 {[%clk 0:02:20.8]} 30... Bxe5 {[%clk
0:01:17.1]} 31. Rde1 {[%clk 0:02:20.2]} 31... Re6 {[%clk 0:00:37.8]} 32. dxe5
{[%clk 0:02:20.9]} 32... Rdxe5 {[%clk 0:00:38.6]} 33. Qa8+ {[%clk 0:02:21.2]}
33... Re8 {[%clk 0:00:39.5]} 34. Rd1 {[%clk 0:02:15.6]} 34... Qe6 {[%clk
0:00:21.4]} 35. Qf3 {[%clk 0:02:15.5]} 35... Re3 {[%clk 0:00:22.6]} 36. Qd5
{[%clk 0:02:15.8]} 36... Qxd5+ {[%clk 0:00:19]} 37. Rxd5 {[%clk 0:02:17.7]}
37... Rxc3 {[%clk 0:00:20.3]} 38. Rd6 {[%clk 0:02:17.1]} 38... Rb3 {[%clk
0:00:21]} 39. Rxa6 {[%clk 0:02:17.1]} 39... Rxb4 {[%clk 0:00:22.3]} 40. Rb6
{[%clk 0:02:16.1]} 40... Rb2+ {[%clk 0:00:22.4]} 41. Rf2 {[%clk 0:02:15.3]}
41... Rb3 {[%clk 0:00:14.5]} 42. a6 {[%clk 0:02:15.4]} 42... c3 {[%clk
0:00:15.4]} 43. Rc2 {[%clk 0:02:10]} 43... Ra8 {[%clk 0:00:14.1]} 44. Ne2 {[%clk
0:02:10.7]} 44... b4 {[%clk 0:00:15]} 45. Ra2 {[%clk 0:02:01.4]} 45... f6 {[%clk
0:00:09.2]} 46. Kf2 {[%clk 0:02:01.9]} 46... Kh7 {[%clk 0:00:10]} 47. h4 {[%clk
0:02:00.7]} 47... Kh6 {[%clk 0:00:10.7]} 48. g4 {[%clk 0:01:54.6]} 48... Ra7
{[%clk 0:00:07.7]} 49. Rb7 {[%clk 0:01:54.7]} 49... Ra8 {[%clk 0:00:08]} 50. a7
{[%clk 0:01:56.3]} 50... Rb2 {[%clk 0:00:07.8]} 51. Rxb2 {[%clk 0:01:56.9]}
51... cxb2 {[%clk 0:00:09.7]} 52. Rxb4 {[%clk 0:01:58.4]} 52... Rxa7 {[%clk
0:00:11.2]} 53. Rxb2 {[%clk 0:01:59.9]} 53... Ra4 {[%clk 0:00:12.8]} 54. Rb8
{[%clk 0:01:54.8]} 54... Kh7 {[%clk 0:00:12.8]} 55. Kf3 {[%clk 0:01:55]} 55...
Ra3+ {[%clk 0:00:13.9]} 56. Ke4 {[%clk 0:01:54.5]} 56... Rh3 {[%clk 0:00:14.7]}
57. Nf4 {[%clk 0:01:49.9]} 57... Rxh4 {[%clk 0:00:15.6]} 58. Kf3 {[%clk
0:01:51.5]} 58... Rh1 {[%clk 0:00:15.2]} 59. Ne6 {[%clk 0:01:51.4]} 59... Re1
{[%clk 0:00:14.4]} 60. Re8 {[%clk 0:01:49]} 60... Re5 {[%clk 0:00:10.6]} 61.
Nf8+ {[%clk 0:01:46.7]} 61... Kh6 {[%clk 0:00:11.1]} 62. Rxe5 {[%clk 0:01:47.9]}
62... fxe5 {[%clk 0:00:13]} 63. Ne6 {[%clk 0:01:49.5]} 63... Kh7 {[%clk
0:00:09.8]} 64. Ke4 {[%clk 0:01:50.3]} 64... Kg8 {[%clk 0:00:11.2]} 65. Kxe5
{[%clk 0:01:51.9]} 65... Kf7 {[%clk 0:00:12.6]} 66. g5 {[%clk 0:01:52.8]} 66...
Kg8 {[%clk 0:00:13.2]} 67. Kd6 {[%clk 0:01:53.2]} 67... Kf7 {[%clk 0:00:14.5]}
68. Nf4 {[%clk 0:01:54.5]} 68... Kg8 {[%clk 0:00:14.9]} 69. Ke7 {[%clk
0:01:55.9]} 69... Kh7 {[%clk 0:00:15.6]} 70. Kf7 {[%clk 0:01:57.1]} 70... Kh8
{[%clk 0:00:16.9]} 71. Nxg6+ {[%clk 0:01:58.6]} 71... Kh7 {[%clk 0:00:18.2]} 72.
Ne7 {[%clk 0:01:55.6]} 72... Kh8 {[%clk 0:00:18.1]} 73. Nf5 {[%clk 0:01:56.7]}
1-0

[Event "*** Titled Tuesday 3|2 Blitz"]
[Site "Chess.com"]
[Date "2017.03.07"]
[Round "3"]
[White "Mischuk_D"]
[Black "kleinebeer98"]
[Result "0-1"]
[WhiteElo "2455"]
[BlackElo "2460"]
[TimeControl "180+2"]
[EndTime "13:40:32 PST"]
[Termination "kleinebeer98 won on time"]

1. e4 {[%clk 0:03:02]} 1... e5 {[%clk 0:03:00.9]} 2. Nf3 {[%clk 0:03:01.8]} 2...
Nc6 {[%clk 0:03:02.2]} 3. d4 {[%clk 0:03:02.7]} 3... exd4 {[%clk 0:03:03.3]} 4.
Nxd4 {[%clk 0:03:02.7]} 4... Qf6 {[%clk 0:03:04.7]} 5. Nf3 {[%clk 0:03:02.6]}
5... Bb4+ {[%clk 0:03:02.2]} 6. c3 {[%clk 0:03:03.5]} 6... Bc5 {[%clk
0:03:02.7]} 7. Bc4 {[%clk 0:03:04.5]} 7... d6 {[%clk 0:03:00.4]} 8. h3 {[%clk
0:03:04.5]} 8... Be6 {[%clk 0:02:59.3]} 9. Nbd2 {[%clk 0:03:02.3]} 9... O-O-O
{[%clk 0:02:57.2]} 10. b4 {[%clk 0:02:58.3]} 10... Bxb4 {[%clk 0:02:38.9]} 11.
Bxe6+ {[%clk 0:02:56.9]} 11... fxe6 {[%clk 0:02:39.3]} 12. cxb4 {[%clk 0:02:57]}
12... Qxa1 {[%clk 0:02:40.1]} 13. b5 {[%clk 0:02:58.3]} 13... Nd4 {[%clk
0:02:38]} 14. O-O {[%clk 0:02:59.1]} 14... Nxf3+ {[%clk 0:02:26.8]} 15. Nxf3
{[%clk 0:02:59.5]} 15... Qxa2 {[%clk 0:02:26.4]} 16. Qd4 {[%clk 0:02:52]} 16...
Nf6 {[%clk 0:02:25]} 17. Bb2 {[%clk 0:02:52.6]} 17... e5 {[%clk 0:02:24.9]} 18.
Qb4 {[%clk 0:02:53.4]} 18... a5 {[%clk 0:01:49.5]} 19. bxa6 {[%clk 0:02:52.2]}
19... Qxa6 {[%clk 0:01:51]} 20. Ra1 {[%clk 0:02:53.2]} 20... Qb6 {[%clk
0:01:49.7]} 21. Qc3 {[%clk 0:02:20.7]} 21... Nxe4 {[%clk 0:01:41.1]} 22. Qc2
{[%clk 0:02:21.5]} 22... Qxf2+ {[%clk 0:01:37.8]} 23. Qxf2 {[%clk 0:02:21.8]}
23... Nxf2 {[%clk 0:01:39.7]} 24. Kxf2 {[%clk 0:02:23.7]} 24... Kd7 {[%clk
0:01:40.3]} 25. Ke3 {[%clk 0:02:24.4]} 25... h6 {[%clk 0:01:40.7]} 26. Nh4
{[%clk 0:02:25.1]} 26... Rhf8 {[%clk 0:01:39.3]} 27. g4 {[%clk 0:02:25.4]} 27...
Ra8 {[%clk 0:01:39]} 28. Rb1 {[%clk 0:02:24.1]} 28... Ke6 {[%clk 0:01:30.8]} 29.
Nf5 {[%clk 0:02:24.8]} 29... g6 {[%clk 0:01:32.1]} 30. Nxh6 {[%clk 0:02:25.9]}
30... d5 {[%clk 0:01:27.4]} 31. g5 {[%clk 0:02:25.7]} 31... d4+ {[%clk
0:01:28.9]} 32. Ke2 {[%clk 0:02:27]} 32... c5 {[%clk 0:01:23.2]} 33. Ng4 {[%clk
0:02:26.8]} 33... Rf5 {[%clk 0:01:19.8]} 34. Bc1 {[%clk 0:02:27.4]} 34... Rb8
{[%clk 0:01:18.4]} 35. Rb6+ {[%clk 0:02:27.6]} 35... Kd5 {[%clk 0:01:19.4]} 36.
Rxg6 {[%clk 0:02:26.2]} 36... b5 {[%clk 0:01:16.8]} 37. Nf6+ {[%clk 0:02:24.6]}
37... Kc4 {[%clk 0:01:17.8]} 38. Ne4 {[%clk 0:02:25.3]} 38... Rff8 {[%clk
0:01:09]} 39. Rc6 {[%clk 0:02:24.2]} 39... Kd5 {[%clk 0:01:10.2]} 40. Rxc5+
{[%clk 0:02:11.2]} 40... Kxe4 {[%clk 0:01:10.5]} 41. h4 {[%clk 0:02:10.5]} 41...
Rh8 {[%clk 0:01:02.6]} 42. Bd2 {[%clk 0:00:47]} 42... Rxh4 {[%clk 0:01:01.1]}
43. Be1 {[%clk 0:00:48.9]} 43... Rh2+ {[%clk 0:01:01.3]} 44. Kf1 {[%clk
0:00:49.4]} 44... Rh5 {[%clk 0:00:38.6]} 45. Bd2 {[%clk 0:00:49.8]} 45... b4
{[%clk 0:00:37.2]} 46. g6 {[%clk 0:00:46.8]} 46... b3 {[%clk 0:00:36.9]} 47. g7
{[%clk 0:00:42.1]} 47... b2 {[%clk 0:00:35.6]} 48. Rb5 {[%clk 0:00:43.3]} 48...
b1=Q+ {[%clk 0:00:33.2]} 49. Rxb1 {[%clk 0:00:43.9]} 49... Rxb1+ {[%clk
0:00:35.1]} 50. Kf2 {[%clk 0:00:45.2]} 50... Rb8 {[%clk 0:00:34.1]} 0-1

[Event "*** Titled Tuesday 3|2 Blitz"]
[Site "Chess.com"]
[Date "2017.03.07"]
[Round "3"]
[White "pKiLz5Rn9b"]
[Black "gkchesstiger"]
[Result "0-1"]
[WhiteElo "2541"]
[BlackElo "2680"]
[TimeControl "180+2"]
[EndTime "13:40:34 PST"]
[Termination "gkchesstiger won by resignation"]

1. e4 {[%clk 0:03:02]} 1... b6 {[%clk 0:02:59.7]} 2. d4 {[%clk 0:03:02.3]} 2...
Bb7 {[%clk 0:03:00.3]} 3. Bd3 {[%clk 0:03:03.8]} 3... e6 {[%clk 0:03:01.1]} 4.
Nf3 {[%clk 0:03:03.8]} 4... d6 {[%clk 0:03:01.9]} 5. c4 {[%clk 0:03:01.2]} 5...
Nd7 {[%clk 0:03:02.2]} 6. Nc3 {[%clk 0:03:02.6]} 6... Ne7 {[%clk 0:03:02.3]} 7.
h4 {[%clk 0:03:01.6]} 7... h6 {[%clk 0:02:57.9]} 8. h5 {[%clk 0:03:02.1]} 8...
Nc6 {[%clk 0:02:49.7]} 9. Be3 {[%clk 0:02:58.8]} 9... Be7 {[%clk 0:02:50.1]} 10.
Qd2 {[%clk 0:02:57.3]} 10... e5 {[%clk 0:02:49.7]} 11. d5 {[%clk 0:02:57.7]}
11... Nb4 {[%clk 0:02:50.5]} 12. Be2 {[%clk 0:02:53.4]} 12... a5 {[%clk
0:02:51.5]} 13. g4 {[%clk 0:02:48.9]} 13... Nf6 {[%clk 0:02:46.3]} 14. Rg1
{[%clk 0:02:43.6]} 14... Nh7 {[%clk 0:02:46.8]} 15. Rb1 {[%clk 0:02:35.8]} 15...
Na6 {[%clk 0:02:44.2]} 16. Na4 {[%clk 0:02:17.4]} 16... Bc8 {[%clk 0:02:40.2]}
17. a3 {[%clk 0:02:13.6]} 17... Bd7 {[%clk 0:02:40.6]} 18. Bd1 {[%clk
0:02:14.8]} 18... Nf6 {[%clk 0:02:37.5]} 19. Nc3 {[%clk 0:02:03.5]} 19... Nxg4
{[%clk 0:02:36.4]} 20. b4 {[%clk 0:02:04.6]} 20... Nxe3 {[%clk 0:02:24.6]} 21.
Qxe3 {[%clk 0:02:05.1]} 21... Bf6 {[%clk 0:02:24.9]} 22. Be2 {[%clk 0:02:01.4]}
22... Nb8 {[%clk 0:02:09]} 23. Kd2 {[%clk 0:01:52]} 23... Kf8 {[%clk 0:02:02.5]}
24. Rbc1 {[%clk 0:01:40.3]} 24... Be8 {[%clk 0:02:00.5]} 25. Bd1 {[%clk
0:01:26.5]} 25... Be7 {[%clk 0:01:55.6]} 26. Bc2 {[%clk 0:01:20.5]} 26... Nd7
{[%clk 0:01:55.2]} 27. Ba4 {[%clk 0:01:04.4]} 27... Nf6 {[%clk 0:01:48.2]} 28.
Bxe8 {[%clk 0:01:05.5]} 28... Qxe8 {[%clk 0:01:48.5]} 29. Rh1 {[%clk 0:01:07.1]}
29... Qd7 {[%clk 0:01:47.4]} 30. Rcg1 {[%clk 0:01:05.2]} 30... Nh7 {[%clk
0:01:35.5]} 31. Kc2 {[%clk 0:01:00.5]} 31... Bg5 {[%clk 0:01:36.1]} 32. Qe2
{[%clk 0:00:49.8]} 32... Ke7 {[%clk 0:01:35.6]} 33. Ne1 {[%clk 0:00:47.4]} 33...
Rhc8 {[%clk 0:01:29]} 34. Nd3 {[%clk 0:00:46.3]} 34... Kf8 {[%clk 0:01:28.3]}
35. Rb1 {[%clk 0:00:42.1]} 35... Nf6 {[%clk 0:01:27.7]} 36. b5 {[%clk
0:00:39.1]} 36... Qg4 {[%clk 0:01:21.2]} 37. f3 {[%clk 0:00:37.7]} 37... Qd7
{[%clk 0:01:22.3]} 38. Rbg1 {[%clk 0:00:37.6]} 38... Nh7 {[%clk 0:01:22.9]} 39.
Qf2 {[%clk 0:00:36.6]} 39... Kg8 {[%clk 0:01:23]} 40. Rh2 {[%clk 0:00:36.1]}
40... Kh8 {[%clk 0:01:23.8]} 41. Rhg2 {[%clk 0:00:37.2]} 41... f5 {[%clk
0:01:21.3]} 42. Qe2 {[%clk 0:00:37.8]} 42... Rf8 {[%clk 0:01:21.3]} 43. Kb3
{[%clk 0:00:36.2]} 43... Rf7 {[%clk 0:01:22.2]} 44. exf5 {[%clk 0:00:36.5]}
44... Qxf5 {[%clk 0:01:22.6]} 45. Rf1 {[%clk 0:00:33.6]} 45... Nf6 {[%clk
0:01:21.8]} 46. Rh2 {[%clk 0:00:29.1]} 46... Raf8 {[%clk 0:01:21.5]} 47. Rhh1
{[%clk 0:00:22.1]} 47... Bf4 {[%clk 0:01:20.9]} 48. Ne4 {[%clk 0:00:19.4]} 48...
Nxh5 {[%clk 0:01:20.3]} 49. Qg2 {[%clk 0:00:20.3]} 49... Be3 {[%clk 0:01:16.8]}
50. Rh4 {[%clk 0:00:19.2]} 50... Nf6 {[%clk 0:01:14.3]} 51. Ndf2 {[%clk
0:00:10.1]} 51... Bxf2 {[%clk 0:01:13.8]} 52. Nxf2 {[%clk 0:00:12]} 52... a4+
{[%clk 0:01:10.7]} 53. Kc3 {[%clk 0:00:12.6]} 53... e4 {[%clk 0:01:08.3]} 54.
fxe4 {[%clk 0:00:12]} 54... Qe5+ {[%clk 0:01:08]} 55. Kc2 {[%clk 0:00:12.7]}
55... Nh7 {[%clk 0:01:05.9]} 56. Nd3 {[%clk 0:00:13.3]} 56... Qd4 {[%clk
0:01:04.7]} 57. Rxf7 {[%clk 0:00:13.4]} 57... Qxc4+ {[%clk 0:01:05.6]} 58. Kd2
{[%clk 0:00:14.2]} 58... Qa2+ {[%clk 0:01:06.4]} 59. Kc3 {[%clk 0:00:14.7]}
59... Qxg2 {[%clk 0:01:07.1]} 60. Rxf8+ {[%clk 0:00:12.7]} 60... Nxf8 {[%clk
0:01:07.8]} 61. Rf4 {[%clk 0:00:14.6]} 61... Ng6 {[%clk 0:01:06.6]} 62. Rf7
{[%clk 0:00:15.5]} 62... Qxe4 {[%clk 0:01:07.7]} 63. Rxc7 {[%clk 0:00:16]} 63...
Qxd5 {[%clk 0:01:08.9]} 64. Kb4 {[%clk 0:00:13.4]} 0-1

[Event "*** Titled Tuesday 3|2 Blitz"]
[Site "Chess.com"]
[Date "2017.03.07"]
[Round "3"]
[White "GMHess"]
[Black "PelinGorki"]
[Result "1-0"]
[WhiteElo "2576"]
[BlackElo "2415"]
[TimeControl "180+2"]
[EndTime "13:40:36 PST"]
[Termination "GMHess won by resignation"]

1. b3 {[%clk 0:03:02]} 1... e5 {[%clk 0:03:00.1]} 2. Bb2 {[%clk 0:03:03.3]} 2...
Nc6 {[%clk 0:02:58.4]} 3. e3 {[%clk 0:03:04.9]} 3... Nge7 {[%clk 0:02:59.2]} 4.
Nf3 {[%clk 0:03:03.5]} 4... e4 {[%clk 0:02:57.8]} 5. Ng5 {[%clk 0:03:03.8]} 5...
d5 {[%clk 0:02:51.7]} 6. Qh5 {[%clk 0:03:00.3]} 6... Ng6 {[%clk 0:02:50.5]} 7.
c4 {[%clk 0:02:43.9]} 7... h6 {[%clk 0:02:44.3]} 8. Nxf7 {[%clk 0:02:44.2]} 8...
Kxf7 {[%clk 0:02:42.1]} 9. cxd5 {[%clk 0:02:45.2]} 9... Nb4 {[%clk 0:02:38.8]}
10. d6 {[%clk 0:02:25.8]} 10... Qxd6 {[%clk 0:02:08.6]} 11. Bc4+ {[%clk
0:02:26.5]} 11... Ke8 {[%clk 0:02:10.2]} 12. Nc3 {[%clk 0:01:47.3]} 12... Nd3+
{[%clk 0:01:52.6]} 13. Bxd3 {[%clk 0:01:36.3]} 13... exd3 {[%clk 0:01:54.2]} 14.
Nb5 {[%clk 0:01:35.7]} 14... Qb6 {[%clk 0:01:43.8]} 15. Nxc7+ {[%clk 0:01:29.4]}
15... Qxc7 {[%clk 0:01:44.9]} 16. Qxg6+ {[%clk 0:01:30.8]} 16... Qf7 {[%clk
0:01:44.3]} 17. Qxd3 {[%clk 0:01:28.7]} 17... Bd7 {[%clk 0:01:29.8]} 18. Qe4+
{[%clk 0:00:59.6]} 18... Qe6 {[%clk 0:01:29.6]} 19. Qxe6+ {[%clk 0:00:57]} 19...
Bxe6 {[%clk 0:01:30.6]} 20. e4 {[%clk 0:00:58.1]} 20... Bb4 {[%clk 0:01:19.6]}
21. Ke2 {[%clk 0:00:46.4]} 21... Kf7 {[%clk 0:01:05.5]} 22. Rac1 {[%clk
0:00:45.1]} 22... Rac8 {[%clk 0:01:06.4]} 23. d4 {[%clk 0:00:43.1]} 23... Rhe8
{[%clk 0:01:02.4]} 24. Kd3 {[%clk 0:00:36.6]} 24... Bd7 {[%clk 0:00:54.3]} 25.
Rxc8 {[%clk 0:00:29.4]} 25... Rxc8 {[%clk 0:00:56.2]} 26. Rc1 {[%clk 0:00:30]}
26... Bb5+ {[%clk 0:00:55.5]} 27. Ke3 {[%clk 0:00:30.7]} 27... Re8 {[%clk
0:00:39]} 28. d5 {[%clk 0:00:23.9]} 28... Bd6 {[%clk 0:00:37.7]} 29. f4 {[%clk
0:00:20.5]} 29... b6 {[%clk 0:00:28.7]} 30. e5 {[%clk 0:00:19]} 30... Bc5+
{[%clk 0:00:30.1]} 31. Bd4 {[%clk 0:00:20]} 31... Ba3 {[%clk 0:00:27]} 32. Rc7+
{[%clk 0:00:16.6]} 32... Re7 {[%clk 0:00:27.6]} 33. e6+ {[%clk 0:00:17.4]} 33...
Kg6 {[%clk 0:00:28.8]} 34. Rxe7 {[%clk 0:00:15.2]} 34... Bxe7 {[%clk 0:00:30.7]}
35. Be5 {[%clk 0:00:16.5]} 35... Kf5 {[%clk 0:00:12.5]} 36. Bxg7 {[%clk
0:00:16.1]} 36... Bc5+ {[%clk 0:00:12.4]} 37. Bd4 {[%clk 0:00:17.1]} 37... Bd6
{[%clk 0:00:13.4]} 38. g3 {[%clk 0:00:16]} 38... Be8 {[%clk 0:00:14.2]} 39. h3
{[%clk 0:00:15.4]} 39... h5 {[%clk 0:00:14.3]} 40. Kf3 {[%clk 0:00:16.6]} 40...
Bb5 {[%clk 0:00:07.9]} 41. g4+ {[%clk 0:00:17.8]} 41... hxg4+ {[%clk 0:00:06.5]}
42. hxg4+ {[%clk 0:00:19.7]} 42... Kg6 {[%clk 0:00:08.4]} 43. Be5 {[%clk
0:00:18.1]} 43... Bc5 {[%clk 0:00:07.1]} 44. d6 {[%clk 0:00:16.8]} 44... Bc6+
{[%clk 0:00:08.2]} 45. Kg3 {[%clk 0:00:17.4]} 45... Bd5 {[%clk 0:00:08.9]} 46.
f5+ {[%clk 0:00:13.7]} 46... Kg5 {[%clk 0:00:10.4]} 47. d7 {[%clk 0:00:14.2]}
47... Be7 {[%clk 0:00:11.3]} 48. Bc7 {[%clk 0:00:14.6]} 48... Kf6 {[%clk
0:00:11]} 49. d8=Q {[%clk 0:00:15.7]} 1-0